[Event "SixDays Budapest May IM 2023"]
[Site "Budapest"]
[Date "2023.05.31"]
[Round "8.5"]
[White "Semprun Martinez, Fernando"]
[Black "Tancsa, Tamas"]
[Result "1/2-1/2"]
[Annotator "TA"]
[ECO "A37"]
[WhiteElo "2125"]
[BlackElo "2188"]
[PlyCount "62"]
[EventDate "2023.05.25"]
[EventType "tourn"]
[EventCountry "HUN"]
[SourceTitle "playchess.com"]
[Source "ChessBase"]
[SourceQuality "1"]
[TimeControl "5400+30"]

{[%evp 19,62,-18,-18,-27,52,0,0,0,79,83,80,0,0,0,0,-8,12,5,10,0,0,0,0,0,0,0,0,2,16,4,4,4,7,0,0,0,0,0,0,0,0,0,0,0,0]} 1. c4 {[%emt 0:00:33]} c5 {[%emt 0:00:46]} 2. Nc3 {[%emt 0:00:07]} Nc6 {[%emt 0:00:07]} 3. g3 {[%emt 0:00:13]} g6 {[%emt 0:00:41]} 4. Bg2 {[%emt 0:00:01]} Bg7 {[%emt 0:00:08]} 5. Nf3 {[%emt 0:00:18][%cal Bg1f3,Bf3e1,Be1c2,Bc2e3][%mdl 32]} e5 {[%emt 0:00:03]} 6. O-O {[%emt 0:00:10]} d6 {[%emt 0:00:46]} 7. Ne1 {[%emt 0:00:21]} Be6 {[%emt 0:00:04]} 8. d3 {[%emt 0:00:16]} Nge7 {[%emt 0:00:11]} 9. Nc2 {[%emt 0:00:17]} d5 {[%emt 0:00:07]} 10. cxd5 {[%emt 0:00:06]} Nxd5 {[%emt 0:00:05]} 11. Ne3 {[%emt 0:00:28][%cal Re3d5] A37: Symmetrical English vs ...g6: 4 Bg2 Bg7 5 Nf3.} Nb6 {[%emt 0:00:05]} (11... Nde7 $11) 12. Bd2 {[%emt 0:02:12] [#]} (12. Bxc6+ $14 bxc6 13. Ne4) 12... f5 $146 {[%emt 0:10:01]} ({Predecessor:} 12... O-O 13. Rc1 Qe7 14. Ne4 Nd7 15. Nc4 Nb6 16. Be3 Nd4 17. Na5 Bxa2 18. Nxc5 Bd5 19. Ncxb7 Bxg2 20. Kxg2 {1-0 Xu,Y (2554)-Bilguun,S (2454) FIDE World Uni Blitz-C 1st 2021 (5.3)}) 13. Na4 {[%emt 0:03:55]} Qd4 {[%emt 0:01:45] [#]} (13... Nxa4 $11 14. Bxc6+ (14. Qxa4 Rc8 $11) 14... bxc6 15. Qxa4 Qd7) 14. Nxb6 $1 $16 {[%emt 0:01:49]} axb6 {[%emt 0:00:23] [#]} 15. Bc3 {[%emt 0:00:48]} ({White should try} 15. Bd5 $1 $16 {[%cal Rd5e6]} Bxd5 16. Bc3) 15... Qd7 {[%emt 0:02:08] The position is equal.} 16. Nc4 {[%emt 0:02:49]} Qc7 {[%emt 0:01:42]} 17. a4 {[%emt 0:01:36]} Bxc4 {[%emt 0:04:44]} 18. dxc4 {[%emt 0:00:02]} e4 {[%emt 0:00:14]} 19. Bxg7 {[%emt 0:06:38]} Qxg7 {[%emt 0:00:38]} 20. f3 {[%emt 0:01:33]} exf3 {[%emt 0:41:00]} ({Resist} 20... Qxb2 21. fxe4 fxe4 22. e3 $16 (22. Bxe4 Rf8 $14)) 21. Bxf3 {[%emt 0:06:01]} O-O {[%emt 0:00:07]} 22. Qb3 {[%emt 0:05:40]} Nb4 {[%emt 0:01:17]} 23. Rad1 {[%emt 0:04:19]} Rad8 {[%emt 0:00:24]} 24. Rxd8 {[%emt 0:10:05]} Rxd8 {[%emt 0:00:03]} 25. Rd1 {[%emt 0:00:12]} Rd4 {[%emt 0:10:14]} 26. e3 {[%emt 0:00:59]} (26. Kf1 {simplifies} Rxd1+ 27. Qxd1 Qe7 28. Qb3) 26... Rxd1+ {[%emt 0:01:45]} 27. Qxd1 {[%emt 0:00:31]} Qxb2 {[%emt 0:01:36]} 28. Qd8+ {[%emt 0:01:16]} Kg7 {[%emt 0:00:39]} 29. Qe7+ {[%emt 0:03:02]} Kg8 {[%emt 0:00:49]} 30. Qe8+ {[%emt 0:01:38]} Kg7 {[%emt 0:00:14]} 31. Qe7+ {[%emt 0:00:09]} Kg8 {[%emt 0:00:06] Weighted Error Value: White=0.08 (flawless) /Black=0.16 (very precise)} 1/2-1/2

[Event "SixDays Budapest May IM 2023"]
[Site "Budapest"]
[Date "2023.06.01"]
[Round "9.1"]
[White "Tancsa, Tamas"]
[Black "Szeberenyi, Adam"]
[Result "1/2-1/2"]
[Annotator "TA"]
[ECO "B40"]
[WhiteElo "2188"]
[BlackElo "2338"]
[PlyCount "25"]
[EventDate "2023.05.25"]
[EventType "tourn"]
[EventCountry "HUN"]
[SourceTitle "playchess.com"]
[Source "ChessBase"]
[SourceQuality "1"]
[TimeControl "5400+30"]

{[%evp 12,25,45,52,50,50,47,50,47,30,35,0,39,33,35,23]} 1. e4 {[%emt 0:00:50]} c5 {[%emt 0:01:02]} 2. Nf3 {[%emt 0:00:07][%cal Bg1f3,Bf3d4,Bd4b5][%mdl 32]} e6 {[%emt 0:00:15]} 3. d4 {[%emt 0:00:04]} cxd4 {[%emt 0:00:02]} 4. Nxd4 {[%emt 0:00:05]} Nf6 {[%emt 0:00:04]} 5. Nc3 {[%emt 0:00:05]} Nc6 {[%emt 0:00:02]} 6. Ndb5 {[%emt 0:00:06]} Bc5 {[%emt 0:00:25]} 7. Bf4 {[%emt 0:00:54] The main line 7.Bf4 scores better than 7.Nd6+.} (7. Nd6+ {feels hotter.} Ke7 8. Bf4 e5 9. Nf5+) 7... O-O {[%emt 0:00:15] B45: Sicilian Four Knights.} 8. Bc7 $1 {[%emt 0:00:14]} Qe7 {[%emt 0:00:04] [#] ...d5 would be deadly.} 9. Bd6 $1 {[%emt 0:00:05]} Bxd6 {[%emt 0:00:04]} 10. Qxd6 {[%emt 0:00:06]} Qd8 {[%emt 0:00:02]} 11. Qg3 {[%emt 0:19:21]} a6 {[%emt 0:22:14]} (11... d5 $5 {[%cal Rd5d4]} 12. O-O-O a6 13. exd5 exd5 $11) 12. Nd6 {[%emt 0:02:02] [#]} Ne8 $146 {[%emt 0:00:15]} ({Predecessor:} 12... b5 13. e5 Nh5 14. Qe3 b4 15. Na4 b3 16. axb3 Rb8 17. Be2 Nb4 18. O-O-O Qc7 19. Nc3 {1-0 Sidhant,M (2376)-Willow,J (2459) Reykjavik op 2023 (5)}) 13. Bd3 {[%emt 0:03:34] Weighted Error Value: White=0.07 (flawless) /Black=0.08 (flawless)} 1/2-1/2

[Event "SixDays Budapest May IM 2023"]
[Site "Budapest"]
[Date "2023.06.01"]
[Round "9.2"]
[White "Nemeth, Zalan"]
[Black "Semprun Martinez, Fernando"]
[Result "1/2-1/2"]
[Annotator "TA"]
[ECO "D90"]
[WhiteElo "2289"]
[BlackElo "2125"]
[PlyCount "95"]
[EventDate "2023.05.25"]
[EventType "tourn"]
[EventCountry "HUN"]
[SourceTitle "playchess.com"]
[Source "ChessBase"]
[SourceQuality "1"]
[TimeControl "5400+30"]

{[%evp 9,95,-8,18,0,0,0,-2,-56,-49,-63,-5,-6,-7,0,14,10,16,21,20,-8,6,8,35,0,0,0,0,0,7,3,6,0,14,14,15,15,14,8,19,15,14,14,16,16,16,0,41,41,41,41,43,41,43,6,7,0,29,29,205,0,0,0,0,0,0,0,0,0,0,0,15,15,131,61,61,61,61,15,15,7,7,7,7,0,0,0,0,0]} 1. d4 {[%emt 0:19:56]} Nf6 {[%emt 0:00:32]} 2. c4 {[%emt 0:00:03]} g6 {[%emt 0:00:12]} 3. Nc3 {[%emt 0:00:07]} d5 {[%emt 0:00:01]} 4. Nf3 {[%emt 0:00:05]} Bg7 {[%emt 0:00:04]} 5. h4 {[%emt 0:00:05]} O-O {[%emt 0:00:09] [#]} 6. h5 $1 {[%emt 0:03:03][%mdl 64] Deflection. D90: Grünfeld: 4 Nf3 Bg7 sidelines.} Nxh5 {[%emt 0:00:01]} 7. cxd5 {[%emt 0:03:32]} c6 {[%emt 0:00:02]} 8. Qb3 {[%emt 0:04:00]} (8. e4 $11) 8... cxd5 $15 {[%emt 0:01:09] [#]} 9. Qxd5 $146 {[%emt 0:00:47]} ({Predecessor:} 9. Bg5 Nc6 10. e3 Be6 11. Qxb7 Rc8 12. Be2 Qd6 13. Qa6 Rb8 14. Nd2 Rb6 15. Qa3 {1-0 Aderito,P (2305)-Makoto,R Africa-ch Windhoek 2007 (1)}) 9... Qxd5 {[%emt 0:04:16]} (9... Nc6 $1 $15) 10. Nxd5 $11 {[%emt 0:00:02] [#] Threatens to win with Nc7.} Nc6 {[%emt 0:00:09]} 11. Bg5 {[%emt 0:11:17]} e6 {[%emt 0:07:04]} 12. Ne7+ {[%emt 0:01:45]} Nxe7 {[%emt 0:00:44]} 13. Bxe7 {[%emt 0:00:05]} Re8 {[%emt 0:00:13]} 14. Bg5 {[%emt 0:05:11]} Nf6 {[%emt 0:03:03]} 15. e3 {[%emt 0:00:36]} Nd7 {[%emt 0:04:29]} 16. Bb5 {[%emt 0:07:17][%cal Of3e5]} a6 {[%emt 0:00:51]} 17. Bxd7 {[%emt 0:03:55]} Bxd7 {[%emt 0:00:02]} 18. Ne5 {[%emt 0:09:05]} Bb5 {[%emt 0:04:13] Black is weak on the dark squares} 19. a4 {[%emt 0:03:42]} Bc6 {[%emt 0:00:01] This pair of bishops is nice.} 20. O-O {[%emt 0:04:08]} h6 {[%emt 0:04:20] Strongly threatening ...Bxe5.} 21. Nxc6 {[%emt 0:00:21][%cal Og5h6]} bxc6 {[%emt 0:01:06]} 22. Bf4 {[%emt 0:00:07]} e5 {[%emt 0:00:42]} 23. dxe5 {[%emt 0:00:25]} g5 {[%emt 0:00:01]} 24. Bg3 {[%emt 0:00:13]} Bxe5 {[%emt 0:00:05]} 25. Bxe5 {[%emt 0:00:10]} Rxe5 {[%emt 0:00:01][%mdl 4096] Endgame KRR-KRR} 26. Rac1 {[%emt 0:01:46]} c5 {[%emt 0:01:35]} 27. Rfd1 {[%emt 0:02:08]} Kg7 {[%emt 0:00:34]} 28. Rd6 {[%emt 0:00:27]} Re4 {[%emt 0:04:42]} 29. b3 {[%emt 0:02:50]} Rb4 {[%emt 0:00:13]} 30. Rxc5 {[%emt 0:00:13]} Rxb3 {[%emt 0:00:02]} 31. Rcc6 {[%emt 0:02:12]} Ra3 {[%emt 0:01:26]} 32. Rxa6 {[%emt 0:00:23]} Rxa6 {[%emt 0:00:01]} 33. Rxa6 {[%emt 0:00:02] g4 would be deadly. KR-KR} Ra2 $2 {[%emt 0:00:11]} (33... Ra1+ $11 {and Black has nothing to worry.} 34. Kh2 Ra2) 34. f3 $2 {[%emt 0:00:27]} (34. g4 $18) 34... f5 {[%emt 0:04:31]} 35. Ra7+ {[%emt 0:05:03]} Kg6 {[%emt 0:00:45]} 36. Ra6+ {[%emt 0:00:05]} Kg7 {[%emt 0:00:03]} 37. a5 {[%emt 0:00:20]} Ra3 {[%emt 0:00:38]} 38. e4 {[%emt 0:01:32]} fxe4 {[%emt 0:01:13]} 39. fxe4 {[%emt 0:00:07] Hoping for Ra7+.} Re3 {[%emt 0:01:29]} 40. Re6 {[%emt 0:00:30] aiming for a6.} Kf7 {[%emt 0:00:16]} (40... Ra3 $11) 41. Kf2 {[%emt 0:01:52]} ({White should play} 41. Rxh6 $16 {a6 is the strong threat.} Rxe4 42. Kf2) 41... Ra3 $14 {[%emt 0:00:01]} 42. Rxh6 {[%emt 0:03:03] And now Ra6 would win.} Rxa5 {[%emt 0:00:12]} 43. Rd6 {[%emt 0:00:43]} (43. Kf3 $14) 43... Ra3 $1 $11 {[%emt 0:03:00] The position is equal.} 44. Rd5 {[%emt 0:00:59]} Kf6 {[%emt 0:00:11]} 45. Rf5+ {[%emt 0:00:09]} Kg6 $1 {[%emt 0:00:01]} 46. Rf3 {[%emt 0:00:07]} Ra2+ {[%emt 0:00:38]} 47. Kg3 {[%emt 0:00:08]} Re2 {[%emt 0:00:38]} 48. e5 {Weighted Error Value: White=0.14 (very precise) /Black=0.19 (very precise)} 1/2-1/2

[Event "SixDays Budapest May IM 2023"]
[Site "Budapest"]
[Date "2023.06.01"]
[Round "9.3"]
[White "Horvath, David"]
[Black "Arvind Ramnath Iyer"]
[Result "1/2-1/2"]
[Annotator "TA"]
[ECO "E70"]
[WhiteElo "2362"]
[BlackElo "1883"]
[PlyCount "57"]
[EventDate "2023.05.25"]
[EventType "tourn"]
[EventCountry "HUN"]
[SourceTitle "playchess.com"]
[Source "ChessBase"]
[SourceQuality "1"]
[TimeControl "5400+30"]

{[%evp 21,57,20,32,15,85,40,64,58,72,72,73,67,95,111,160,114,153,168,249,118,180,132,118,89,89,70,65,61,52,52,52,61,35,52,99,96,112,64]} 1. d4 {[%emt 0:00:38]} Nf6 {[%emt 0:00:34]} 2. c4 {[%emt 0:00:59]} g6 {[%emt 0:00:04]} 3. Nc3 {[%emt 0:00:03]} Bg7 {[%emt 0:00:04]} 4. e4 {[%emt 0:00:05]} d6 {[%emt 0:00:02]} 5. Nge2 {[%emt 0:00:04]} O-O {[%emt 0:01:06]} 6. Ng3 {[%emt 0:00:05]} e5 {[%emt 0:02:11]} 7. d5 {[%emt 0:00:08]} a5 {[%emt 0:01:02]} 8. Be2 {[%emt 0:00:06]} Na6 {[%emt 0:00:58]} 9. h4 {[%emt 0:00:07]} h5 {[%emt 0:05:19]} 10. Bg5 {[%emt 0:00:13]} Qe8 {[%emt 0:07:42]} 11. Qd2 {[%emt 0:01:47]} Nh7 {[%emt 0:05:39]} 12. Bh6 {[%emt 0:05:43] E70: King's Indian: Miscellaneous lines with 4 e4, including 5 Nge2 and 5 Bd3 0-0 6 Nge2.} f6 {[%emt 0:03:39]} (12... Bxh6 $11 13. Qxh6 Qe7) 13. O-O-O {[%emt 0:03:21]} Bd7 {[%emt 0:03:13]} 14. Be3 {[%emt 0:06:12] [#] White is slightly better.} a4 $146 {[%emt 0:23:13]} ({Predecessor:} 14... Nc5 15. f3 a4 16. Nf1 f5 17. Bd3 Nxd3+ 18. Qxd3 f4 19. Bf2 a3 20. b3 Qe7 {½-½ Bozinovic,B (2229)-Zivkovic,N (2144) CRO-chT1A 27th 2018 (1.36)}) 15. a3 {[%emt 0:16:09]} b6 {[%emt 0:03:29]} 16. Nb5 {[%emt 0:01:56]} f5 {[%emt 0:10:15]} 17. exf5 {[%emt 0:05:50] White has more active pieces. The black rooks are badly placed.} Bxf5 {[%emt 0:00:07]} ({Black should play} 17... gxf5 18. Bxh5 Qc8) 18. f3 {[%emt 0:07:50]} ({Better is} 18. Nxf5 gxf5 19. g3) 18... e4 {[%emt 0:15:47]} 19. Nxf5 {[%emt 0:20:21]} Rxf5 {[%emt 0:00:20] [#]} (19... gxf5 $142 20. Kb1 Rc8) 20. fxe4 {[%emt 0:05:50]} (20. g4 $1 $18 {[%cal Rg4f5] is the precise move to win.} hxg4 21. fxg4) 20... Re5 {[%emt 0:00:01] [#]} (20... Rf7 $16) 21. Bd3 {[%emt 0:04:19]} (21. Bf3 $1 $18) 21... Nf6 $16 {[%emt 0:00:03]} 22. Qc2 {[%emt 0:06:08]} Ng4 {[%emt 0:05:17]} 23. Bf4 {[%emt 0:01:31]} Re7 {[%emt 0:00:28]} 24. e5 {[%emt 0:03:00][%mdl 64] Discovered Attack} (24. Qxa4 Nf2 25. Qc2 Nxh1 26. Rxh1 Nb4 $11) 24... Bxe5 {[%emt 0:00:50]} 25. Bg5 {[%emt 0:00:48][%cal Od3g6] This pair of bishops is nice.} (25. Bxg6 $2 {perishes.} Bxf4+ 26. Kb1 Qf8 $19) 25... Rg7 {[%emt 0:00:13]} 26. Rhe1 {[%emt 0:02:53]} ({Reject} 26. Qxa4 Nf2 27. Rhg1 Nc5 $17) 26... Nc5 {[%emt 0:02:35]} 27. Kb1 {[%emt 0:00:05]} Nxd3 {[%emt 0:01:19]} (27... Kh7 $14 {feels stronger.}) 28. Rxd3 {[%emt 0:00:10]} (28. Qxd3 $2 {loses.} Nf2 29. Qc2 Nxd1 $19) 28... Qd7 {[%emt 0:02:18]} 29. Rf3 {[%emt 0:02:24] Blacks defense is rewarded with a draw.   Weighted Error Value: White=0.23 (precise) /Black=0.27 (precise)} (29. Nd4 $16) 1/2-1/2

[Event "SixDays Budapest May IM 2023"]
[Site "Budapest"]
[Date "2023.06.01"]
[Round "9.5"]
[White "Ojas Kulkarni"]
[Black "Dudognon, Thibault"]
[Result "1/2-1/2"]
[Annotator "TA"]
[ECO "D10"]
[WhiteElo "2230"]
[BlackElo "2325"]
[PlyCount "184"]
[EventDate "2023.05.25"]
[EventType "tourn"]
[EventCountry "HUN"]
[SourceTitle "playchess.com"]
[Source "ChessBase"]
[SourceQuality "1"]
[TimeControl "5400+30"]

{[%evp 22,184,14,16,33,26,29,31,32,12,24,26,26,35,52,36,74,0,0,4,0,5,19,0,3,3,3,0,3,3,3,3,3,3,3,3,3,3,3,3,3,3,6,3,4,0,63,63,63,0,0,0,0,0,0,0,0,0,0,0,0,0,0,0,0,0,0,0,19,0,0,-3,0,0,0,0,0,0,0,0,0,0,0,0,0,0,0,0,0,0,0,0,0,0,0,0,0,0,0,0,0,0,0,0,0,0,0,0,0,0,0,0,0,0,0,0,0,0,0,0,0,0,0,0,0,0,0,0,0,0,0,0,0,0,0,0,0,0,0,0,0,0,0,0,0,0,0,0,0,0,0,0,0,0,0,0,0,0,0,0,0,0,0,0,0]} 1. d4 {[%emt 0:00:34]} d5 {[%emt 0:00:37]} 2. c4 {[%emt 0:00:05]} c6 {[%emt 0:00:10]} 3. cxd5 {[%emt 0:00:09]} cxd5 {[%emt 0:00:07]} 4. Bf4 {[%emt 0:00:06]} Nc6 {[%emt 0:00:18][%cal Bb8c6,Bc6a5,Ba5c4][%mdl 32]} 5. e3 {[%emt 0:00:11]} Nf6 {[%emt 0:02:03]} 6. Nc3 {[%emt 0:00:08]} Bg4 {[%emt 0:01:47]} 7. Qb3 {[%emt 0:00:09]} Na5 {[%emt 0:00:08]} 8. Qa4+ {[%emt 0:00:07]} Bd7 {[%emt 0:00:03]} 9. Qc2 {[%emt 0:00:08]} e6 {[%emt 0:00:06]} 10. Bd3 {[%emt 0:00:08]} Rc8 {[%emt 0:04:09]} 11. Nf3 {[%emt 0:01:53]} b5 {[%emt 0:05:40]} 12. a3 {[%emt 0:00:11]} (12. Bxb5 $2 {is the wrong capture.} Bxb5 13. Nd2 Bb4 $19) 12... Nc4 {[%emt 0:02:18] D14: Slav Defence: Exchange variation with ...Bf5.} 13. O-O {[%emt 0:04:47]} Be7 {[%emt 0:01:14]} 14. h3 {[%emt 0:09:40]} O-O {[%emt 0:01:51] White is slightly better.} 15. Rfc1 {[%emt 0:02:06]} a5 {[%emt 0:03:08]} 16. Qe2 {[%emt 0:02:12]} Qb6 {[%emt 0:05:58]} 17. Ne5 {[%emt 0:08:18]} Rfd8 {[%emt 0:06:31]} 18. Nxd7 {[%emt 0:15:04]} Nxd7 {[%emt 0:03:43]} 19. b3 {[%emt 0:01:35]} ({Don't play} 19. Qh5 h6 $11) (19. a4 $16) 19... Nxa3 $11 {[%emt 0:03:58]} 20. Nxb5 {[%emt 0:01:09]} Nxb5 {[%emt 0:00:38]} 21. Bxb5 {[%emt 0:00:15] A strong pair of Bishops.} Nf6 {[%emt 0:01:36] [#]} 22. Bg5 $146 {[%emt 0:01:23]} ({Predecessor:} 22. Ba4 Ne4 23. Qb5 Qxb5 24. Bxb5 Nc3 25. Bd3 Bb4 26. Kf1 h6 27. f3 Rc6 28. Bg3 {½-½ Pham,C (2361)-Ton That Nhu,T (2206) VIE-chT Ho Chi Minh City 2013 (3)}) 22... Rc7 {[%emt 0:14:43]} 23. Rxc7 {[%emt 0:03:24]} Qxc7 {[%emt 0:00:07]} 24. Bxf6 {[%emt 0:00:06]} gxf6 {[%emt 0:02:49]} 25. Qd2 {[%emt 0:00:37]} Bb4 {[%emt 0:00:49]} 26. Rc1 {[%emt 0:00:22]} Qb7 {[%emt 0:06:50]} 27. Qe2 {[%emt 0:01:14]} Rc8 {[%emt 0:01:25]} 28. Rxc8+ {[%emt 0:01:21]} Qxc8 {[%emt 0:00:01][%mdl 4096] Endgame KQB-KQB} 29. Qd1 {[%emt 0:04:20]} Qc3 {[%emt 0:00:38]} 30. g3 {[%emt 0:00:29]} Kf8 {[%emt 0:02:21]} 31. Kg2 {[%emt 0:00:22]} Ke7 {[%emt 0:00:19]} 32. Bd3 {[%emt 0:01:30]} h6 {[%emt 0:04:49]} 33. Qc2 {[%emt 0:00:41]} Qa1 {[%emt 0:00:21]} ({Black should play} 33... Qxc2 $11 34. Bxc2 e5) 34. Bb5 $14 {[%emt 0:03:20] [#] Qc8 is the strong threat.} Qc3 {[%emt 0:07:34] Dodges Qc8} 35. Qxc3 {[%emt 0:00:14]} ({Better is} 35. Qh7 $14) 35... Bxc3 {[%emt 0:00:01] KB-KB. The position is equal.} 36. f4 {[%emt 0:01:45]} f5 {[%emt 0:01:35]} 37. Kf3 {[%emt 0:00:13]} Be1 {[%emt 0:00:36]} 38. g4 {[%emt 0:01:30]} fxg4+ {[%emt 0:00:02]} 39. Kxg4 {[%emt 0:00:07]} h5+ {[%emt 0:01:49]} 40. Kf3 {[%emt 0:00:10]} f6 {[%emt 0:00:20]} 41. Ke2 {[%emt 0:00:29]} Bb4 {[%emt 0:01:10]} 42. Kf3 {[%emt 0:00:15]} Bd2 {[%emt 0:00:19]} 43. Ke2 {[%emt 0:00:07]} Bc1 {[%emt 0:00:08]} 44. Kf3 {[%emt 0:00:08]} Kd6 {[%emt 0:00:38]} 45. Be8 {[%emt 0:02:51]} (45. h4 $5 {[%cal Rb5e8]}) 45... h4 {[%emt 0:00:28]} 46. Ke2 {[%emt 0:00:27]} e5 {[%emt 0:00:31]} 47. fxe5+ {[%emt 0:00:06]} fxe5 {[%emt 0:00:05]} 48. dxe5+ {[%emt 0:00:03]} Kxe5 {[%emt 0:00:03]} 49. Kd3 {[%emt 0:00:16]} Ba3 {[%emt 0:00:15]} 50. Bf7 {[%emt 0:00:19]} Bc5 {[%emt 0:00:35]} 51. Be8 {[%emt 0:00:20]} Ba7 {[%emt 0:00:37]} 52. Bf7 {[%emt 0:00:16]} Bb6 {[%emt 0:00:12]} 53. Be8 {[%emt 0:00:06]} Ke6 {[%emt 0:00:31]} 54. Bb5 {[%emt 0:00:27]} Kd6 {[%emt 0:00:06]} 55. Be8 {[%emt 0:00:16]} Kc5 {[%emt 0:00:08]} 56. Bf7 {[%emt 0:00:24]} Bd8 {[%emt 0:00:19]} 57. Be6 {[%emt 0:00:15]} Bf6 {[%emt 0:00:10]} 58. Bf7 {[%emt 0:00:23]} Kd6 {[%emt 0:00:29]} 59. Be8 {[%emt 0:00:18]} Ke7 {[%emt 0:00:10]} 60. Bc6 {[%emt 0:00:32]} Ke6 {[%emt 0:00:05]} 61. Be8 {[%emt 0:00:19]} Bg7 {[%emt 0:00:16]} 62. Bb5 {[%emt 0:00:14]} Ke7 {[%emt 0:00:22]} 63. Bc6 {[%emt 0:00:09]} Kd6 {[%emt 0:00:04]} 64. Be8 {[%emt 0:00:12]} Bh8 {[%emt 0:00:14]} 65. Bf7 {[%emt 0:00:10]} Kc6 {[%emt 0:00:16]} 66. Be8+ {[%emt 0:00:30]} Kc5 {[%emt 0:00:16]} 67. Bf7 {[%emt 0:00:06]} Bb2 {[%emt 0:00:11]} 68. Be6 {[%emt 0:00:07]} Ba3 {[%emt 0:01:07]} 69. Bf7 {[%emt 0:00:16]} Bb4 {[%emt 0:00:08]} 70. Be6 {[%emt 0:00:07]} Be1 {[%emt 0:00:07]} 71. Bf7 {[%emt 0:00:09]} Bf2 {[%emt 0:00:10]} 72. Be6 {[%emt 0:00:10]} Kd6 {[%emt 0:00:10]} 73. Bf7 {[%emt 0:00:07]} Bg3 {[%emt 0:00:24]} 74. e4 {[%emt 0:00:40]} dxe4+ {[%emt 0:00:11]} 75. Kxe4 {[%emt 0:00:06]} Kc5 {[%emt 0:00:07]} 76. Kd3 {[%emt 0:00:04]} Kb4 {[%emt 0:00:04]} 77. Kc2 {[%emt 0:00:05]} Be5 {[%emt 0:00:15]} 78. Be6 $1 {[%emt 0:00:05]} Bf6 {[%emt 0:00:12]} 79. Bf7 {[%emt 0:00:05]} Kc5 {[%emt 0:00:07]} 80. Be6 {[%emt 0:00:09]} Kd4 {[%emt 0:00:05]} 81. Kb1 {[%emt 0:00:29]} Kc3 {[%emt 0:00:13]} 82. Ka2 {[%emt 0:00:05]} Be7 {[%emt 0:00:04]} 83. Bf7 {[%emt 0:00:10]} Bb4 {[%emt 0:00:09]} 84. Be6 {[%emt 0:00:06]} Kd4 {[%emt 0:00:10]} 85. Bg4 {[%emt 0:00:05]} Ke5 {[%emt 0:00:05]} 86. Bc8 {[%emt 0:00:07]} Kf4 {[%emt 0:00:04]} 87. Kb1 {[%emt 0:00:04]} Kg3 {[%emt 0:00:28]} 88. Bg4 {[%emt 0:00:06]} Kg2 {[%emt 0:00:09]} 89. Kb2 {[%emt 0:00:05]} Kg3 {[%emt 0:00:05]} 90. Ka2 {[%emt 0:00:02]} Kg2 {[%emt 0:00:06]} 91. Kb2 {[%emt 0:00:03]} Kg3 {[%emt 0:00:05]} 92. Ka2 {[%emt 0:00:03]} Kg2 {Weighted Error Value: White=0.06 (flawless) /Black=0.05 (flawless)} 1/2-1/2